bitfinex/quotes_ETHUSD_20241105
["timestamp","ask_amount","ask_price","bid_price","bid_amount"]
[1730841600810,4.11754,2428.7,2428.3,4.48112417]
[1730841601334,4.11754,2428.7,2428.3,4.11809]
[1730841601631,4.11754,2428.7,2428.2,0.8207]
[1730841601940,4.11754,2428.7,2428.1,7.11833]
[1730841601941,5.333554,2428.6,2428.1,7.11833]
[1730841602230,4.9218,2428.6,2428.1,7.11833]
[1730841602528,4.1178,2428.5,2428.1,3.0]
[1730841602749,0.8042,2428.6,2428.1,3.0]
[1730841603031,0.8069,2428.9,2428.5,4.88774]
[1730841603202,4.92412,2428.9,2428.5,0.77]
[1730841603717,4.11701,2429.0,2428.5,4.88772]
[1730841604014,7.11676194,2429.2,2428.6,5.02635865]
[1730841604015,0.8069,2429.1,2428.6,5.02635865]
[1730841604159,0.8069,2429.1,2428.7,4.1174]
[1730841604321,4.1167,2429.2,2428.7,4.1174]
[1730841604524,4.11669,2429.2,2428.7,4.1174]
[1730841604720,4.9832454,2429.3,2428.8,4.11716]
[1730841604951,4.9832454,2429.3,2428.7,5.10870486]
[1730841605151,4.9832454,2429.3,2428.7,4.11734]
[1730841605373,4.9832454,2429.3,2428.8,4.11717]
[1730841605658,4.9832454,2429.3,2428.7,4.11734]
[1730841605659,4.11659,2429.2,2428.7,8.23468]
[1730841605860,4.11659,2429.2,2428.7,4.11733]
[1730841606975,4.11659,2429.2,2428.7,4.11732]
[1730841607328,4.11695,2429.0,2428.5,4.88775]
[1730841607651,4.11695,2429.0,2428.6,0.36338983]
[1730841608163,4.11659,2429.2,2428.6,0.36338983]
[1730841608374,4.11659,2429.2,2428.7,4.11733]
[1730841608552,4.11659,2429.2,2428.7,4.64240198]
[1730841608928,4.11675,2429.1,2428.7,4.64240198]
[1730841609237,4.11659,2429.2,2428.7,4.64240198]
[1730841609568,0.8667954,2429.3,2428.8,4.11724]
[1730841609923,4.9832254,2429.3,2428.7,4.64240198]
[1730841610122,4.1166,2429.2,2428.8,0.4642402]
[1730841611126,4.11679,2429.1,2428.8,0.4642402]
[1730841612340,0.8667954,2429.3,2428.9,4.11699]
[1730841612544,0.8667954,2429.3,2428.9,0.7815]
[1730841612545,4.1763854,2429.3,2428.9,0.7815]
[1730841612771,0.0598954,2429.3,2428.9,0.7815]
[1730841612974,0.0598954,2429.3,2429.0,0.53628802]
[1730841613277,0.0598954,2429.3,2429.2,4.11658]
[1730841613421,0.0598954,2429.3,2429.2,4.66658]
[1730841613864,0.0598954,2429.3,2429.2,5.85197404]
[1730841614035,0.0598954,2429.3,2429.2,8.85197404]
[1730841614242,0.0598954,2429.3,2429.2,10.52178057]
[1730841615679,3.0,2430.6,2430.1,0.8151]
[1730841615680,1.7748456,2430.5,2430.1,0.8151]
[1730841615883,0.0598954,2430.5,2429.9,0.7631]
[1730841616059,4.87248,2430.4,2429.9,0.7631]
[1730841616244,0.7578,2430.4,2430.0,4.11512]
[1730841616625,4.87236,2430.4,2429.9,4.87837]
[1730841617029,0.7578,2430.4,2430.0,4.11522]
[1730841617273,0.0598954,2430.5,2430.1,4.11493]
[1730841617573,0.0598954,2430.5,2430.1,4.92927751]
[1730841617745,0.0598954,2430.5,2430.1,0.81434751]
[1730841617947,4.1742854,2430.5,2430.1,0.81434751]
[1730841618132,0.0598954,2430.5,2430.1,0.81434751]
[1730841618557,4.1742754,2430.5,2430.1,0.81434751]
[1730841619472,4.1742754,2430.5,2429.2,5.78636653]
[1730841619473,4.11498,2430.2,2429.7,3.18314319]
[1730841619669,0.7675,2430.3,2429.7,3.18314319]
[1730841619670,4.88236,2430.3,2429.7,7.29886319]
[1730841619872,4.11498,2430.2,2429.7,7.29886319]
[1730841620078,4.11498,2430.2,2429.7,8.51635451]
[1730841620371,4.11498,2430.2,2429.7,4.40063451]
[1730841620690,4.11522,2430.0,2429.6,0.7601]
[1730841620970,4.11506,2430.1,2429.6,4.87598]
[1730841621482,4.11527,2430.0,2429.6,0.7601]
[1730841622164,8.23026,2430.1,2429.6,4.87599]
[1730841622331,4.11506,2430.1,2429.6,2.27761132]
[1730841622535,4.11523,2430.0,2429.6,2.27761132]
[1730841624878,4.11552,2429.9,2429.6,2.27761132]
[1730841625188,4.11552,2429.9,2429.3,4.11628]
[1730841625189,4.11573,2429.7,2429.3,0.55]
[1730841625354,4.11591,2429.6,2429.3,0.55]
[1730841625551,4.11591,2429.6,2429.2,0.7557]
[1730841625760,4.11616,2429.5,2429.2,0.7557]
[1730841625939,0.7788,2429.7,2429.0,0.53628802]
[1730841626289,4.11653,2429.3,2428.9,0.7557]
[1730841626440,4.11666,2429.2,2428.9,0.7557]
[1730841627287,0.809,2429.9,2429.3,4.11629]
[1730841627467,4.92442,2429.9,2429.4,0.08232347]
[1730841627639,4.11558,2429.8,2429.4,0.49773135]
[1730841627843,8.23125,2429.8,2429.4,0.49773135]
[1730841628040,4.11581,2429.7,2429.4,0.49773135]
[1730841628345,4.11594,2429.6,2429.3,0.7787]
[1730841628540,4.11581,2429.7,2429.3,0.7787]
[1730841628741,4.11581,2429.7,2429.3,4.89509]
[1730841630084,4.11581,2429.7,2429.3,0.7787]
[1730841630915,4.11515,2430.1,2429.5,3.0]
[1730841631118,4.11514,2430.1,2429.6,0.71985597]
[1730841631264,4.11514,2430.1,2429.7,0.7787]
[1730841631904,8.23028,2430.1,2429.7,0.7787]
[1730841632271,0.08136343,2430.0,2429.7,0.7787]
[1730841632487,0.08136343,2430.0,2429.7,2.0517246]
[1730841632807,0.08136343,2430.0,2429.7,6.1673846]
[1730841633305,4.11489,2430.2,2429.7,6.1673846]
[1730841634755,4.11485,2430.3,2429.8,4.11554]
[1730841635661,4.1154,2429.9,2429.7,2.0517246]
[1730841635951,4.1154,2429.9,2429.7,0.7787]
[1730841636262,0.08106864,2429.8,2429.7,0.7787]
[1730841636412,4.11506,2430.1,2429.7,0.7787]
[1730841636616,4.11506,2430.1,2429.5,3.0]
[1730841636617,4.1154,2429.9,2429.5,3.0]
[1730841636855,4.19693035,2429.8,2429.4,0.8202]
[1730841637041,0.08127035,2429.8,2429.7,4.93593]
[1730841637242,4.11473,2430.3,2429.7,4.93593]
[1730841637243,4.11491,2430.2,2429.7,4.93593]
[1730841637444,0.08105622,2429.8,2429.7,4.93593]
[1730841637625,4.11491,2430.2,2429.7,4.93593]
[1730841637844,0.08105622,2429.8,2429.7,4.93593]
[1730841638050,4.11491,2430.2,2429.8,0.55]
[1730841638232,4.11491,2430.2,2429.7,6.220462]
[1730841638233,0.08105622,2429.8,2429.7,6.220462]
[1730841638563,4.11503,2430.2,2429.7,6.220462]
[1730841638715,0.08105622,2429.8,2429.7,6.220462]
[1730841638916,4.11506,2430.1,2429.7,6.220462]
[1730841639227,4.11506,2430.1,2429.7,2.104732]
[1730841639555,0.08128718,2430.0,2429.7,2.104732]
[1730841641061,4.11549,2429.9,2429.7,0.8202]
[1730841641231,4.19394355,2429.9,2429.7,0.8202]
[1730841642101,0.07845355,2429.9,2429.7,0.8202]
[1730841645522,4.19395355,2429.9,2429.7,0.8202]
[1730841645688,4.19395355,2429.9,2429.5,4.54626]
[1730841645888,4.19395355,2429.9,2429.6,1.54816595]
[1730841646124,4.19395355,2429.9,2429.6,1.18455332]
[1730841646625,0.07845355,2429.9,2429.6,1.18455332]
[1730841646792,0.07845355,2429.9,2429.7,0.36363231]
[1730841646998,4.92345,2430.1,2429.6,5.30037332]
[1730841647191,0.07891997,2429.8,2429.6,1.18455332]
[1730841647405,4.11531,2430.0,2429.7,0.90532033]
[1730841647719,4.92345,2430.1,2429.7,0.90532033]
[1730841647720,4.11548,2429.9,2429.7,0.90532033]
[1730841647951,4.11572,2429.8,2429.3,0.8215]
[1730841648097,4.11572,2429.8,2429.4,0.36376527]
[1730841648098,4.11583,2429.7,2429.4,0.36376527]
[1730841648424,4.11583,2429.7,2429.5,0.36382867]
[1730841648630,4.11583,2429.7,2429.3,0.8215]
[1730841648848,4.11583,2429.7,2429.4,0.36382809]
[1730841648999,4.11583,2429.7,2429.3,2.04527232]
[1730841649000,4.11583,2429.7,2429.5,0.36382809]
[1730841649202,4.11572,2429.8,2429.3,5.04527232]
[1730841649404,5.0,2430.2,2429.3,5.04527232]
[1730841649405,4.11592,2429.6,2429.4,0.36383001]
[1730841649603,8.23193,2429.6,2429.1,8.12126319]
[1730841649798,8.23193,2429.6,2429.5,0.36392551]
[1730841650004,4.11617,2429.5,2429.2,0.36393386]
[1730841650234,4.11617,2429.5,2429.3,0.36393386]
[1730841650399,4.11617,2429.5,2428.9,4.11696]
[1730841650400,4.11666,2429.2,2428.9,0.7937]
[1730841650603,4.11666,2429.2,2429.0,0.36392664]
[1730841650604,0.07744339,2429.1,2429.0,0.36392664]
[1730841650851,4.19419339,2429.1,2429.0,0.36392664]
[1730841651406,4.19419339,2429.1,2428.8,3.18314319]
[1730841651716,4.19419339,2429.1,2428.9,0.36381583]
[1730841651916,4.19419339,2429.1,2428.8,3.99257251]
[1730841652219,4.19419339,2429.1,2428.9,0.36381723]
[1730841652401,4.19419339,2429.1,2428.9,0.36367582]
[1730841652610,4.11692,2429.0,2428.9,0.36367582]
[1730841652803,0.07717655,2429.0,2428.7,0.7937]
[1730841653013,0.07717655,2429.0,2428.9,4.11709]
[1730841653330,4.11624,2429.4,2428.9,4.11709]
[1730841653331,8.23261,2429.4,2428.9,0.89109314]
[1730841653653,4.11642,2429.3,2428.9,0.89099095]
[1730841653818,4.19328832,2429.3,2428.9,0.89099095]
[1730841654451,4.19328832,2429.3,2428.9,0.52744392]
[1730841655415,4.19328832,2429.3,2428.9,4.64452392]
[1730841655648,4.19328832,2429.3,2428.9,0.52744392]
[1730841657191,0.07686832,2429.3,2428.9,0.52744392]
[1730841657512,4.19334832,2429.3,2428.9,0.52744392]
[1730841658117,4.11664,2429.2,2428.9,0.52744392]
[1730841658319,4.11678,2429.1,2428.8,3.18314319]
[1730841658514,0.07699614,2429.1,2428.8,3.18314319]
[1730841659527,0.07699614,2429.1,2428.8,7.30037319]
[1730841659861,4.11628,2429.4,2428.9,4.89969]
[1730841660071,0.07740516,2429.0,2428.9,4.89969]
[1730841660233,4.11628,2429.4,2428.9,6.11968532]
[1730841660768,0.07769588,2429.3,2428.9,6.11968532]
[1730841660974,0.07769588,2429.3,2429.0,4.11679]
[1730841661269,0.07769588,2429.3,2429.1,4.11675]
[1730841661472,0.07762825,2429.2,2429.0,4.11679]
[1730841661629,4.11626,2429.4,2429.0,1.34197785]
[1730841661827,4.11677,2429.1,2428.7,0.7827]
[1730841662031,4.1941267,2429.0,2428.7,0.7827]
[1730841662656,4.11722,2428.9,2428.5,3.7709]
[1730841662845,4.19442892,2428.9,2428.5,3.7709]
[1730841663047,4.19442892,2428.9,2428.5,4.55977]
[1730841663250,0.07720892,2428.9,2428.5,4.55977]
[1730841663524,0.07720892,2428.9,2428.3,0.7709]
[1730841663525,4.11759,2428.6,2428.3,0.7709]
[1730841664072,0.07374386,2428.5,2428.3,0.7709]
[1730841664300,0.07374386,2428.5,2428.1,0.7709]
[1730841664668,0.07374386,2428.5,2428.1,1.21619988]
[1730841665300,4.11795,2428.4,2428.1,2.47985919]
[1730841665589,0.07382258,2428.4,2428.1,0.7709]
[1730841665949,4.19180258,2428.4,2428.1,0.7709]
[1730841666161,4.19180258,2428.4,2428.0,3.0]
[1730841666711,0.07382258,2428.4,2428.1,4.11835]
[1730841666892,4.11763,2428.6,2428.1,4.11835]
[1730841667098,0.07309048,2428.3,2428.1,4.11835]
[1730841667251,4.11763,2428.6,2428.1,4.11835]
[1730841667452,0.07332169,2428.5,2428.4,4.11792]
[1730841667654,4.11686,2429.1,2428.4,6.51381394]
[1730841668024,0.0709676,2429.0,2428.7,4.11732]
[1730841668298,0.8176,2429.2,2428.8,0.7849]
[1730841668454,0.07157857,2428.9,2428.8,0.7849]
[1730841668654,8.23306,2429.3,2428.8,0.7849]
[1730841668977,4.18860517,2429.2,2428.8,0.7849]
[1730841669151,4.18860517,2429.2,2428.8,1.28335618]
[1730841669969,0.07192517,2429.2,2428.8,5.40051618]
[1730841670181,0.07192517,2429.2,2428.8,5.48285156]
[1730841670350,4.11652,2429.3,2428.8,5.48285156]
[1730841670570,0.07180964,2429.1,2428.8,5.40051618]
[1730841670912,0.07169411,2429.0,2428.9,0.95178362]
[1730841671690,4.11652,2429.3,2428.9,0.95178362]
[1730841671864,0.07169411,2429.0,2428.9,5.06887362]
[1730841672199,4.87164,2429.4,2428.9,5.06887362]
[1730841672413,0.07169411,2429.0,2428.8,5.40058618]
[1730841672573,4.11651,2429.3,2428.8,5.40058618]
[1730841672757,0.07157857,2428.9,2428.8,5.40058618]
[1730841672958,4.11651,2429.3,2428.8,5.40058618]
[1730841673284,4.11659,2429.2,2428.8,1.28335618]
[1730841673484,4.11677,2429.1,2428.8,1.28335618]
[1730841673686,4.11695,2429.0,2428.5,7.93548]
[1730841673982,4.18840381,2429.0,2428.5,3.9001449]
[1730841674195,0.07145381,2429.0,2428.6,4.11751]
[1730841674520,0.07145381,2429.0,2428.8,4.11718]
[1730841674869,4.11659,2429.2,2428.8,4.11718]
[1730841675072,0.07175611,2428.9,2428.8,4.11718]
[1730841675259,4.11659,2429.2,2428.8,5.240649]
[1730841675486,0.07150634,2428.9,2428.8,5.240649]
[1730841675856,4.11659,2429.2,2428.8,5.240649]
[1730841676394,0.07173746,2429.1,2428.8,5.240649]
[1730841676700,0.07173746,2429.1,2428.8,1.123469]
[1730841676906,0.07173746,2429.1,2428.7,3.0]
[1730841677201,0.07173746,2429.1,2428.7,7.1173]
[1730841677698,4.11692,2429.0,2428.7,3.0]
[1730841677874,0.0716219,2429.0,2428.7,3.0]
[1730841678464,0.0716219,2429.0,2428.7,7.910841]
[1730841678762,4.11659,2429.2,2428.7,7.910841]
[1730841678988,0.07150634,2428.9,2428.7,7.910841]
[1730841679200,4.11659,2429.2,2428.7,7.910841]
[1730841679595,4.11659,2429.2,2428.8,0.36371648]
[1730841679861,0.07173746,2429.1,2428.7,8.460841]
[1730841680071,0.07173746,2429.1,2428.8,1.6215544]
[1730841680228,0.07173746,2429.1,2428.8,1.2578351]
[1730841681871,4.18850746,2429.1,2428.8,1.2578351]
[1730841682051,0.07173746,2429.1,2428.7,8.460941]
[1730841682251,0.07173746,2429.1,2428.8,0.36388325]
[1730841682583,0.07173746,2429.1,2428.7,12.578281]
[1730841682723,0.07173746,2429.1,2428.8,0.36386232]
[1730841682920,0.07173746,2429.1,2428.7,8.460871]
[1730841683124,0.07173746,2429.1,2428.8,0.363871]
[1730841683324,0.07173746,2429.1,2428.7,8.460871]
[1730841683569,0.07173746,2429.1,2428.8,0.36388336]
[1730841683754,0.07173746,2429.1,2428.7,8.460871]
[1730841683956,0.07173746,2429.1,2428.8,0.36388426]
[1730841684125,0.07173746,2429.1,2428.7,7.11734]
[1730841684327,0.07173746,2429.1,2428.8,0.36389187]
[1730841684650,0.07173746,2429.1,2428.7,8.322618]
[1730841684651,0.07173746,2429.1,2428.7,12.439948]
[1730841684977,0.07173746,2429.1,2428.9,4.11704]
[1730841685263,0.07173746,2429.1,2428.9,4.91344]
[1730841685469,8.98806,2429.4,2428.9,4.91344]
[1730841685639,0.0716179,2429.0,2428.9,4.91344]
[1730841685967,4.11642,2429.3,2428.9,2.48387065]
[1730841686179,0.0716179,2429.0,2428.9,0.7964]
[1730841686328,4.11642,2429.3,2428.9,1.16029116]
[1730841686674,0.0716179,2429.0,2428.9,0.7964]
[1730841686868,4.11642,2429.3,2428.9,1.16028592]
[1730841687030,0.0716179,2429.0,2428.9,0.7964]
[1730841687224,8.23342,2429.2,2428.9,0.36388644]
[1730841687430,4.11677,2429.1,2428.9,0.36388644]
[1730841687668,4.18850346,2429.1,2428.8,0.36391307]
[1730841687963,4.18850346,2429.1,2428.7,3.0]
[1730841688166,0.07173346,2429.1,2428.8,0.36391587]
[1730841688321,0.07173346,2429.1,2428.7,8.32072]
[1730841688521,0.07173346,2429.1,2428.8,0.36392215]
[1730841688766,0.07173346,2429.1,2428.7,8.32072]
[1730841688977,0.07173346,2429.1,2428.8,1.323752]
[1730841691232,4.18849346,2429.1,2428.7,3.0]
[1730841691551,4.18849346,2429.1,2428.8,0.36394757]
[1730841691736,0.07173346,2429.1,2428.7,3.0]
[1730841691939,0.07173346,2429.1,2428.8,4.48112298]
[1730841692145,4.11643,2429.3,2428.9,0.36397298]
[1730841692352,0.0716179,2429.0,2428.8,9.1173623]
[1730841692666,6.58136342,2429.4,2428.9,4.48102601]
[1730841692888,2.14647162,2429.5,2429.1,4.11665]
[1730841692889,1.70961342,2429.5,2429.1,4.11665]
[1730841693171,0.07240835,2429.3,2429.2,4.25965455]
[1730841693378,2.93877162,2429.9,2429.4,4.11618]
[1730841693379,1.70961342,2429.8,2429.4,4.11618]
[1730841693530,4.9078,2429.9,2429.4,4.11618]
[1730841693531,6.61741342,2429.9,2429.4,4.11618]
[1730841693973,4.11559,2429.8,2429.4,4.11618]
[1730841694515,4.11559,2429.8,2429.3,4.1164]
[1730841694672,5.82520342,2429.8,2429.3,4.1164]
[1730841695027,4.11559,2429.8,2429.3,4.1164]
[1730841695233,4.11559,2429.8,2429.3,5.63934432]
[1730841695645,5.82520342,2429.8,2429.3,5.63934432]
[1730841695877,0.7843,2428.8,2428.7,0.86010691]
[1730841696041,4.11743,2428.7,2428.3,0.7611]
[1730841696247,4.11743,2428.7,2428.4,0.36380282]
[1730841696248,4.11765,2428.6,2428.4,0.36380282]
[1730841696434,4.11743,2428.7,2428.5,0.36386593]
[1730841696636,4.11794,2428.4,2428.0,0.7611]
[1730841696942,4.11794,2428.4,2428.1,0.36388561]
[1730841697144,4.11794,2428.4,2428.2,0.36388561]
[1730841697348,4.1181,2428.3,2427.8,4.48283561]
[1730841697547,9.02028,2428.4,2427.9,0.36388561]
[1730841697760,1.28781566,2428.5,2428.0,4.48238561]
[1730841697971,1.28781566,2428.6,2428.2,4.11827]
[1730841698273,5.82713342,2428.7,2428.2,4.11827]
[1730841698274,1.28781566,2428.7,2428.3,4.11809]
[1730841698598,1.28781566,2428.7,2428.2,4.11827]
[1730841699058,1.28781566,2428.7,2428.2,4.11815]
[1730841699259,1.28781566,2428.7,2428.3,0.491395]
[1730841699495,6.21340566,2428.8,2428.3,0.491395]
[1730841700305,0.06342808,2428.7,2428.3,0.491395]
[1730841700598,10.33080566,2428.8,2428.3,0.491395]
[1730841700769,0.0633125,2428.6,2428.3,0.491395]
[1730841700980,2.09611566,2428.8,2428.4,4.11793]
[1730841701157,0.0631969,2428.5,2428.3,0.491395]
[1730841701360,6.21337566,2428.8,2428.3,4.609495]
[1730841701603,0.0630813,2428.4,2428.3,4.609495]
[1730841701797,6.21337566,2428.8,2428.3,4.609495]
[1730841702403,0.06342808,2428.7,2428.5,4.11767]
[1730841702771,5.40484566,2429.0,2428.5,4.11767]
[1730841702992,0.06107615,2428.6,2428.5,4.11767]
[1730841703190,1.28781566,2429.0,2428.7,4.11737]
[1730841703664,6.21148566,2429.1,2428.6,4.92533]
[1730841703862,0.06138258,2428.9,2428.7,4.609953]
[1730841704084,2.09471566,2429.1,2428.7,4.609953]
[1730841704085,0.06149815,2429.0,2428.7,4.609953]
[1730841704297,0.06106525,2428.8,2428.7,4.609953]
[1730841704522,4.92368,2429.1,2428.7,0.492533]
[1730841704697,0.06106525,2428.8,2428.7,0.492533]
[1730841704905,0.06106525,2428.8,2428.7,4.609953]
[1730841705062,6.21149566,2429.1,2428.7,4.609953]
[1730841705262,0.06106525,2428.8,2428.7,4.609953]
[1730841705505,4.92368,2429.1,2428.7,4.609953]
[1730841705711,0.06106525,2428.8,2428.7,4.609953]
[1730841705916,4.92368,2429.1,2428.7,4.609953]
[1730841706275,0.06106525,2428.8,2428.7,4.609953]
[1730841706884,6.21149566,2429.1,2428.7,4.609953]
[1730841707087,0.06106525,2428.8,2428.7,4.609953]
[1730841707697,6.21149566,2429.1,2428.7,4.609953]
[1730841707901,0.06106525,2428.8,2428.7,4.609953]
[1730841708098,6.21149566,2429.1,2428.7,4.609953]
[1730841708291,0.06106525,2428.8,2428.7,4.609953]
[1730841708626,0.06106525,2428.8,2428.7,0.57487525]
[1730841708830,1.28781566,2429.2,2428.9,4.117]
[1730841708991,1.28781566,2429.3,2428.9,4.9896813]
[1730841709190,1.28781566,2429.3,2429.0,4.11689]
[1730841709389,1.28781566,2429.4,2429.1,4.11658]
[1730841709814,2.08261566,2429.5,2429.1,4.11658]
[1730841710316,0.05992276,2429.4,2429.2,4.11646]
[1730841710538,0.05992276,2429.4,2429.2,5.020194]
[1730841710679,0.05992276,2429.4,2429.3,4.11641]
[1730841710876,1.28781566,2429.7,2429.4,4.11615]
[1730841711080,1.28781566,2429.8,2429.5,4.11595]
[1730841711395,1.28781566,2429.8,2429.6,4.11578]
[1730841711582,1.28781566,2429.9,2429.6,8.23155]
[1730841711921,1.28781566,2429.9,2429.7,4.11556]
[1730841712125,1.28781566,2429.9,2429.6,5.019355]
[1730841712281,1.28781566,2430.0,2429.7,4.11558]
[1730841712479,1.28781566,2430.1,2429.7,4.11558]
[1730841712679,1.28781566,2430.1,2429.8,4.11547]
[1730841712888,1.28781566,2430.1,2429.9,4.11538]
[1730841713220,1.28781566,2430.2,2429.9,4.9322]
[1730841713813,1.28781566,2430.3,2429.9,4.9322]
[1730841714424,5.40260566,2430.3,2429.9,0.8169]
[1730841715187,2.07091566,2430.4,2430.0,4.11521]
[1730841715381,7.19578005,2430.4,2429.9,0.8169]
[1730841715717,11.31041005,2430.4,2429.8,4.11542]
[1730841715926,1.28781566,2430.3,2429.8,4.11542]
[1730841716219,4.11475,2430.3,2429.8,4.11542]
[1730841717587,3.08110005,2430.4,2429.8,4.11542]
[1730841717588,0.7831,2430.4,2429.9,4.11523]
[1730841717904,4.89766,2430.4,2429.9,4.11523]
[1730841718103,4.89766,2430.4,2429.9,8.23053]
[1730841718895,4.89766,2430.4,2429.9,4.11523]
[1730841719089,5.46217106,2430.5,2430.0,4.11514]
[1730841719283,5.46217106,2430.5,2430.0,4.11513]
[1730841720023,5.46217106,2430.5,2430.0,4.1152]
[1730841720232,5.46217106,2430.5,2430.0,8.7323393]
[1730841720403,5.46217106,2430.5,2430.0,4.6171393]
[1730841720735,4.1743554,2430.5,2430.0,8.7322693]
[1730841720937,4.1743554,2430.5,2430.0,4.6171293]
[1730841721243,0.0598954,2430.5,2430.1,4.11501]
[1730841721546,0.0598954,2430.5,2430.2,4.11484]
[1730841721701,0.0598954,2430.5,2430.3,4.11468]
[1730841722506,0.0598954,2430.5,2430.3,4.11459]
[1730841723042,0.0598954,2430.5,2430.2,4.11484]
[1730841723250,0.0598954,2430.5,2430.3,4.11462]
[1730841723451,0.0598954,2430.5,2430.4,0.822946]
[1730841724129,4.1742654,2430.5,2430.1,1.69531393]
[1730841724341,4.1742654,2430.5,2430.1,3.8221]
[1730841724511,4.1742654,2430.5,2430.0,4.6171193]
[1730841724512,0.0598954,2430.5,2430.0,0.5019993]
[1730841724712,0.0598954,2430.5,2430.0,0.58429853]
[1730841724934,0.0598954,2430.5,2430.1,0.85216185]
[1730841725139,4.1743654,2430.5,2430.1,0.85216185]
[1730841725704,4.11458,2430.4,2430.1,0.85216185]
[1730841726053,4.11458,2430.4,2429.7,4.11559]
[1730841726054,4.86751,2430.3,2429.7,0.8221]
[1730841726413,8.98231,2430.3,2429.8,4.11547]
[1730841727159,8.98231,2430.3,2429.5,0.8221]
[1730841727160,0.7528,2430.3,2429.5,0.8221]
[1730841727327,4.11565,2429.8,2429.3,0.8221]
[1730841727648,4.11551,2429.9,2429.4,4.11623]
[1730841728003,8.231,2429.9,2429.4,4.11623]
[1730841728238,4.11549,2429.9,2429.4,4.11623]
[1730841728413,4.11549,2429.9,2429.3,0.8221]
[1730841728414,4.11575,2429.7,2429.5,0.493833]
[1730841729033,0.05716557,2429.6,2429.5,0.493833]
[1730841729437,4.11557,2429.8,2429.5,0.493833]
[1730841729633,0.05716557,2429.6,2429.5,0.493833]
[1730841729929,0.05736725,2429.6,2429.5,0.493833]
[1730841730130,4.11557,2429.8,2429.5,0.493833]
[1730841730446,0.05744667,2429.7,2429.3,7.93848]
[1730841730808,4.11557,2429.8,2429.3,7.93848]
[1730841731006,0.05744667,2429.7,2429.3,7.93848]
[1730841731340,4.11557,2429.8,2429.3,7.93848]
[1730841731550,0.05744667,2429.7,2429.3,0.8221]
[1730841731713,4.11598,2429.6,2429.3,1.39644587]
[1730841731918,0.05744667,2429.7,2429.3,0.57434587]
[1730841731919,4.11588,2429.7,2429.3,0.57434587]
[1730841732115,4.11583,2429.7,2429.3,0.57434587]
[1730841732319,0.05711483,2429.6,2429.3,0.57434587]
[1730841733005,0.05711483,2429.6,2429.3,4.69072587]
[1730841733260,0.7528,2430.0,2429.5,0.8096]
[1730841733411,4.11516,2430.1,2429.6,4.11577]
[1730841733609,4.11516,2430.1,2429.5,3.8096]
[1730841733922,4.11516,2430.1,2429.6,8.23169]
[1730841734119,4.11485,2430.3,2429.8,4.87897]
[1730841734456,4.11481,2430.3,2429.9,0.542897]
[1730841734617,4.11491,2430.2,2429.9,0.542897]
[1730841736034,0.05715634,2430.1,2429.9,0.542897]
[1730841736350,4.87356,2430.4,2429.9,0.542897]
[1730841736680,0.05754856,2430.3,2429.9,4.658167]
[1730841736976,0.05754856,2430.3,2430.0,0.9537097]
[1730841737793,0.05754856,2430.3,2429.6,4.11578]
[1730841737794,4.11532,2430.0,2429.5,0.8298]
[1730841737941,4.11532,2430.0,2429.5,7.94585]
[1730841737942,0.05734886,2429.9,2429.5,7.94585]
[1730841738136,0.05734886,2429.9,2429.7,3.0]
[1730841738371,4.11519,2430.1,2429.7,3.0]
[1730841738566,0.05746431,2430.0,2429.7,4.206165]
[1730841739664,0.05746431,2430.0,2429.7,1.206165]
[1730841740477,4.11547,2429.9,2429.7,1.206165]
[1730841740781,4.11547,2429.9,2429.5,3.8298]
[1730841740782,4.17288932,2429.8,2429.5,0.8298]
[1730841740936,4.17288932,2429.8,2429.4,0.46907259]
[1730841740937,4.11581,2429.7,2429.4,0.46907259]
[1730841741138,0.05709035,2429.6,2429.4,0.46907259]
[1730841743049,0.05709035,2429.6,2429.4,4.66761828]
[1730841743253,0.05709035,2429.6,2429.5,0.84974183]
[1730841743466,4.88329,2429.9,2429.5,0.84974183]
[1730841743467,4.11559,2429.8,2429.5,0.84974183]
[1730841743671,0.05700219,2429.6,2429.5,0.84974183]
[1730841743840,4.11559,2429.8,2429.5,0.84974183]
[1730841744037,0.05700219,2429.6,2429.5,0.84974183]
[1730841744364,4.11575,2429.7,2429.5,0.84974183]
[1730841744578,0.05700219,2429.6,2429.5,0.84974183]
[1730841744875,0.05700219,2429.6,2429.4,0.46907259]
[1730841745065,0.05700219,2429.6,2428.9,4.8686]
[1730841745066,4.11624,2429.4,2428.9,4.8686]
[1730841745478,0.05710348,2429.3,2428.9,4.8686]
[1730841746556,4.11658,2429.2,2428.7,4.8689]
[1730841746760,0.05667515,2429.1,2428.8,4.11725]
[1730841746946,4.11643,2429.3,2428.8,4.11725]
[1730841747147,0.05679067,2429.2,2428.8,4.11725]
[1730841747347,4.11643,2429.3,2428.8,4.11725]
[1730841747553,0.05679067,2429.2,2428.8,5.45587625]
[1730841747770,4.11658,2429.2,2428.8,1.33862625]
[1730841747951,0.05659097,2429.1,2428.7,3.7516]
[1730841748482,0.05659097,2429.1,2428.7,7.86902]
[1730841748978,0.05659097,2429.1,2428.7,3.7516]
[1730841749195,4.11712,2428.9,2428.5,0.7516]
[1730841749343,0.05611139,2428.8,2428.5,3.0]
[1730841749545,4.17341139,2428.8,2428.5,3.0]
[1730841749752,0.05599582,2428.7,2428.5,3.0]
[1730841749951,4.1173,2428.8,2428.5,3.0]
[1730841750186,0.05599582,2428.7,2428.5,3.0]
[1730841750359,4.1173,2428.8,2428.5,3.0]
[1730841750549,0.05599582,2428.7,2428.5,3.0]
[1730841750783,4.11725,2428.9,2428.4,3.0]
[1730841750992,4.11763,2428.6,2428.1,0.7552]
[1730841751298,4.11802,2428.4,2427.9,4.87396]
[1730841751463,4.11802,2428.4,2427.9,6.09155032]
[1730841751669,0.05408151,2428.3,2427.9,1.97279032]
[1730841751857,0.05408151,2428.3,2427.6,4.11923]
[1730841751858,4.11842,2428.2,2427.6,4.11923]
[1730841752189,4.17326609,2428.1,2427.7,0.7825]
[1730841753100,0.05481609,2428.1,2427.7,4.90156]
[1730841753284,0.05481609,2428.1,2427.8,4.11885]
[1730841753481,0.05481609,2428.1,2427.8,4.20121976]
[1730841753658,4.87403,2428.3,2427.8,0.08236976]
[1730841753659,4.11829,2428.2,2427.8,0.08236976]